bitfinex/quotes_ETHUSD_20260226
["timestamp","ask_amount","ask_price","bid_price","bid_amount"]
[1772068278578,3.20646872,2064.0,2063.1,0.52395603]
[1772068279183,0.49918378,2063.9,2062.8,0.52395603]
[1772068279395,0.49918378,2063.7,2062.9,1.21188617]
[1772068279577,0.49918378,2063.7,2062.8,0.52395603]
[1772068279773,0.49918378,2063.7,2062.8,1.73589982]
[1772068280402,0.49918378,2063.7,2062.8,1.73590057]
[1772068281492,1.21145432,2063.7,2062.9,0.52395603]
[1772068282106,1.21145432,2063.7,2063.0,0.0011]
[1772068282285,0.001,2063.5,2063.0,0.0011]
[1772068282487,0.001,2063.5,2063.0,0.52505603]
[1772068282814,0.49918378,2063.4,2063.0,0.0011]
[1772068283512,1.21165123,2063.3,2063.0,0.0011]
[1772068284821,0.49918378,2063.2,2062.8,0.0011]
[1772068284980,2.70465123,2063.3,2062.8,0.0011]
[1772068285990,3.23458983,2063.3,2062.8,0.0011]
[1772068286393,1.21165123,2063.3,2062.8,0.0011]
[1772068286594,2.70665123,2063.3,2062.8,0.51439168]
[1772068288818,2.70665123,2063.3,2062.8,1.72633277]
[1772068289701,2.70957986,2063.5,2062.9,0.51329168]
[1772068290896,2.70957986,2063.5,2062.9,1.72517428]
[1772068291327,0.5299386,2063.4,2062.8,0.0011]
[1772068292004,1.499,2063.5,2063.0,0.52202914]
[1772068292200,0.48864791,2063.4,2062.8,0.0011]
[1772068292394,0.48864791,2063.4,2062.6,0.0011]
[1772068293029,0.48864791,2063.2,2062.6,0.0011]
[1772068293230,8.7441003,2063.5,2062.6,0.52312914]
[1772068293231,0.001,2063.5,2062.6,0.52312914]
[1772068293437,1.21258149,2063.5,2062.8,0.52202914]
[1772068294497,1.21258149,2063.5,2063.0,0.0011]
[1772068300730,0.48864791,2063.4,2063.0,0.0011]
[1772068302726,1.70029914,2063.3,2063.0,0.0011]
[1772068304342,1.70029914,2063.3,2062.8,0.0011]
[1772068304839,1.509,2063.2,2062.8,0.0011]
[1772068306822,1.21176869,2063.1,2063.0,0.0011]
[1772068308345,1.21176869,2063.1,2062.8,0.0011]
[1772068310663,1.21176869,2063.1,2062.8,0.52312914]
[1772068312219,1.21176869,2063.1,2062.8,0.0011]
[1772068316049,2.72074483,2063.2,2062.8,0.53078325]
[1772068316559,2.73074483,2063.2,2062.8,0.53078325]
[1772068317232,0.001,2063.5,2063.1,0.52968325]
[1772068317923,0.001,2063.5,2063.2,1.74139321]
[1772068318124,0.001,2063.5,2063.3,0.52968325]
[1772068318926,0.001,2063.5,2063.0,0.0011]
[1772068318927,0.48638111,2063.5,2063.0,0.0011]
[1772068319126,2.00538111,2063.4,2063.0,0.0011]
[1772068320352,1.21165123,2063.3,2063.0,0.0011]
[1772068324174,1.69703234,2063.3,2063.0,0.0011]
[1772068325057,0.001,2063.5,2063.0,0.53078325]
[1772068325255,2.66638124,2063.8,2063.3,0.52968325]
[1772068325650,1.526,2063.9,2063.3,0.52968325]
[1772068325848,2.73730145,2063.9,2063.3,0.52968325]
[1772068326051,0.001,2064.2,2063.4,0.52968325]
[1772068326253,1.21212335,2064.2,2063.6,0.52968325]
[1772068326438,0.001,2064.2,2063.6,0.52968325]
[1772068326956,0.001,2064.2,2063.7,1.21141638]
[1772068327157,0.001,2064.2,2063.8,0.52968325]
[1772068327371,6.85757923,2064.4,2064.0,0.52968325]
[1772068327372,0.001,2064.4,2064.0,0.52968325]
[1772068327548,0.001,2064.4,2064.2,0.52968325]
[1772068327756,2.73659512,2065.1,2064.2,0.52968325]
[1772068328054,3.22197623,2065.1,2064.2,0.52968325]
[1772068329377,3.22197623,2065.1,2064.2,1.74076776]
[1772068329671,3.22197623,2065.1,2064.2,1.21108451]
[1772068329975,0.48538111,2064.7,2063.8,0.52968325]
[1772068330172,1.525,2064.6,2063.8,1.74103786]
[1772068330361,2.01038111,2064.6,2063.8,0.52968325]
[1772068330675,0.48538111,2064.5,2063.7,1.505]
[1772068331348,1.21100561,2064.4,2063.7,2.03468325]
[1772068333368,0.48538111,2064.4,2063.7,2.03468325]
[1772068334185,1.21088878,2064.6,2063.9,1.71500246]
[1772068334490,4.8438913,2064.9,2064.2,0.52968325]
[1772068334491,6.36716995,2064.8,2064.2,0.52968325]
[1772068335080,6.85255106,2064.8,2063.9,0.52968325]
[1772068335279,1.71500246,2064.7,2063.7,1.505]
[1772068335590,0.48538111,2064.4,2063.7,1.505]
[1772068336155,0.48538111,2064.4,2063.6,1.7411544]
[1772068336685,0.48538111,2064.2,2063.3,0.52968325]
[1772068336981,0.48538111,2064.2,2063.3,1.74130917]
[1772068337179,1.524,2064.2,2063.6,0.52968325]
[1772068337780,4.8442346,2064.4,2063.7,1.21141638]
[1772068338080,6.3682346,2064.4,2063.7,1.74109963]
[1772068338991,0.48538111,2064.1,2063.2,0.0011]
[1772068340076,0.48538111,2063.9,2063.2,0.0011]
[1772068341251,1.21124031,2064.0,2063.3,0.52968325]
[1772068342167,4.84496124,2064.1,2063.3,1.74129918]
[1772068342367,1.524,2064.2,2063.7,0.52968325]
[1772068342769,2.73614128,2064.2,2063.7,0.52968325]
[1772068343862,2.73614128,2064.2,2063.4,0.53078325]
[1772068343863,3.22152239,2064.2,2063.4,0.53078325]
[1772068344073,3.22152239,2064.2,2063.4,0.0011]
[1772068344074,1.21124031,2064.0,2063.4,0.0011]
[1772068344276,1.21124031,2064.0,2063.4,1.74237491]
[1772068344572,1.21124031,2064.0,2063.4,0.53078325]
[1772068345486,1.21216887,2064.2,2063.6,0.52968325]
[1772068347889,1.21216887,2064.2,2063.6,1.21146945]
[1772068348072,0.001,2064.2,2063.7,0.50546278]
[1772068349097,0.001,2064.2,2063.7,1.71686965]
[1772068350390,0.001,2064.2,2063.7,0.50546278]
[1772068352071,0.49839269,2064.2,2063.4,0.47309891]
[1772068352468,0.49739269,2064.1,2063.4,0.47309891]
[1772068352995,0.49739269,2064.1,2063.4,0.0011]
[1772068353399,0.49739269,2063.9,2063.4,0.0011]
[1772068353598,2.02439269,2063.9,2063.4,0.0011]
[1772068353980,4.84596124,2064.2,2063.4,0.0011]
[1772068353981,0.001,2064.2,2063.5,1.71500246]
[1772068354296,1.527,2064.7,2064.0,0.47199891]
[1772068354974,1.21171319,2064.9,2064.2,0.47199891]
[1772068355383,0.001,2064.9,2064.2,1.68307589]
[1772068355586,0.001,2064.9,2064.2,0.47199891]
[1772068357877,1.21171238,2064.9,2064.2,0.47199891]
[1772068358387,1.70910507,2064.9,2064.0,1.21119383]
[1772068358574,1.70910507,2064.9,2063.9,1.6832524]
[1772068359175,1.70910507,2064.9,2064.0,0.47199891]
[1772068359984,1.70910507,2064.9,2064.0,1.68318348]
[1772068360626,1.21062831,2065.1,2064.5,0.47199891]
[1772068360774,1.21018491,2065.8,2064.8,0.47199891]
[1772068360980,5.34004359,2065.9,2064.6,1.491]
[1772068360981,1.21213591,2065.9,2065.1,0.47199891]
[1772068361200,1.2121302,2065.9,2065.1,0.47199891]
[1772068361399,0.49739269,2065.8,2064.7,0.47199891]
[1772068362496,1.2102435,2065.7,2064.9,0.47199891]
[1772068363396,0.49739269,2065.6,2064.6,3.17385206]
[1772068363904,2.39796367,2065.1,2063.9,0.47199891]
[1772068364109,2.02139269,2065.0,2063.9,0.47199891]
[1772068364303,0.49739269,2064.9,2063.9,0.47199891]
[1772068364473,0.49739269,2064.9,2063.8,0.47199891]
[1772068364474,1.7081637,2064.8,2063.8,0.47199891]
[1772068364679,2.73377101,2064.8,2063.8,0.47199891]
[1772068366308,3.2311637,2064.8,2063.8,0.47199891]
[1772068366613,3.2311637,2064.8,2063.9,1.21129899]
[1772068366909,0.49739269,2064.7,2063.6,1.49]
[1772068367087,0.49739269,2064.7,2063.6,3.17343383]
[1772068367623,1.522,2064.7,2064.0,0.0011]
[1772068367780,1.523,2064.7,2064.0,0.0011]
[1772068368211,2.02039269,2064.7,2064.0,0.0011]
[1772068368583,1.2108883,2064.6,2064.0,0.0011]
[1772068370118,0.49739269,2064.5,2064.0,0.0011]
[1772068370817,1.21100561,2064.4,2064.0,0.0011]
[1772068372318,1.21098711,2064.5,2064.0,0.0011]
[1772068373417,0.001,2064.7,2064.1,0.47199891]
[1772068373623,1.21183245,2064.7,2064.1,0.47199891]
[1772068374524,1.70922514,2064.7,2064.0,0.0011]
[1772068374828,0.49739269,2064.6,2064.0,0.0011]
[1772068375393,1.525,2064.6,2064.0,0.0011]
[1772068375609,1.21094696,2064.5,2064.0,0.0011]
[1772068375802,1.67668966,2064.5,2064.0,0.0011]
[1772068375988,0.4657427,2064.4,2064.0,0.0011]
[1772068377392,0.4657427,2064.4,2063.8,0.0011]
[1772068377393,0.4657427,2064.3,2063.8,0.0011]
[1772068377623,1.21112295,2064.2,2063.8,0.0011]
[1772068378532,0.4657427,2064.1,2063.5,0.0011]
[1772068378709,0.4657427,2064.0,2063.5,0.0011]
[1772068379236,2.73912295,2064.2,2063.5,0.0011]
[1772068380499,2.73912295,2064.2,2064.0,0.0011]
[1772068380693,2.73912295,2064.2,2063.5,0.0011]
[1772068380900,2.73912295,2064.2,2063.8,0.0011]
[1772068381092,0.4657427,2064.1,2063.5,0.0011]
[1772068381501,0.4657427,2063.9,2063.2,0.0011]
[1772068381709,1.53,2063.8,2063.2,0.0011]
[1772068383312,0.4657427,2063.7,2063.2,0.0011]
[1772068384096,1.21147509,2063.6,2063.2,0.0011]
[1772068385925,1.21129899,2063.9,2063.2,0.51307859]
[1772068386231,1.532,2063.8,2063.2,0.51307859]
[1772068386616,1.21141638,2063.7,2063.2,0.51307859]
[1772068387533,1.21141638,2063.7,2063.2,0.0011]
[1772068390720,0.4657427,2063.2,2062.9,0.0011]
[1772068390919,1.536,2063.1,2062.4,0.51197859]
[1772068391235,1.21182743,2063.0,2062.4,0.51197859]
[1772068392634,1.21182743,2063.0,2062.3,1.21219625]
[1772068392828,1.67757013,2063.0,2062.3,0.51197859]
[1772068393027,1.67757013,2063.0,2062.1,3.06125786]
[1772068393028,0.4657427,2062.9,2062.1,3.06125786]
[1772068393229,1.21194492,2062.8,2062.1,3.06125786]
[1772068393917,1.21194492,2062.8,2062.1,0.51197859]
[1772068395937,1.21194492,2062.8,2061.9,4.84989479]
[1772068395938,2.0047427,2062.7,2061.9,0.51197859]
[1772068396950,1.21193069,2062.9,2062.1,0.51197859]
[1772068397240,13.60533211,2063.5,2062.4,0.51197859]
[1772068397241,1.67733521,2063.4,2062.4,0.51197859]
[1772068397454,3.21633521,2063.4,2062.4,0.51197859]
[1772068397735,3.21633521,2063.4,2062.5,1.21212121]
[1772068397955,1.21159251,2063.4,2062.6,0.51197859]
[1772068398132,1.21258159,2063.5,2062.6,0.51197859]
[1772068398642,0.001,2063.5,2062.7,0.51197859]
[1772068399816,0.001,2063.5,2062.8,1.21194492]
[1772068400031,0.001,2063.5,2062.9,0.51197859]
[1772068400967,1.21134388,2063.9,2063.0,0.51197859]
[1772068401261,0.4657427,2064.2,2063.3,0.51197859]
[1772068401262,1.21116383,2064.2,2063.3,0.51197859]
[1772068401614,0.4657427,2064.0,2062.8,1.21194492]
[1772068401811,0.4657427,2063.8,2063.0,0.51197859]
[1772068405154,1.21141638,2063.7,2063.0,0.51197859]
[1772068405356,0.4657427,2063.6,2062.8,1.21302301]
[1772068405562,0.4667427,2063.6,2062.8,0.51307859]
[1772068406628,0.4667427,2063.6,2062.8,1.72502197]
[1772068406828,0.001,2063.6,2062.9,0.47254238]
[1772068407497,1.21118162,2064.1,2063.2,0.47254238]
[1772068409639,0.50686612,2064.0,2062.8,0.0011]
[1772068409839,0.50686612,2063.9,2062.8,1.68554016]
[1772068410031,0.50686612,2063.9,2062.9,0.47254238]
[1772068411840,1.7182238,2063.8,2062.9,1.68437322]
[1772068412459,1.7182238,2063.8,2063.0,0.47443381]
[1772068414448,0.46962036,2063.7,2063.0,0.47443381]
[1772068416259,1.21147509,2063.6,2063.0,0.47443381]
[1772068417145,1.21147509,2063.6,2063.1,0.47443381]
[1772068417577,2.74418162,2064.1,2063.2,0.47553381]
[1772068417758,2.74418162,2064.1,2063.2,0.0011]
[1772068418084,2.74418162,2064.1,2063.3,0.47443381]
[1772068418953,2.74418162,2064.1,2063.3,1.68604464]
[1772068419161,2.74418162,2064.1,2063.4,0.47443381]
[1772068419472,1.21118162,2064.1,2063.4,0.47443381]
[1772068419679,0.46962036,2064.6,2063.5,0.47443381]
[1772068419855,1.2108883,2064.6,2063.8,0.47443381]
[1772068420373,0.001,2064.7,2064.2,0.47443381]
[1772068420951,0.001,2064.7,2063.9,3.14669975]
[1772068421145,0.001,2064.7,2064.0,0.47443381]
[1772068421465,0.46962036,2064.6,2063.9,1.461]
[1772068421664,0.46962036,2064.6,2063.9,2.67228945]
[1772068422150,0.001,2064.7,2063.9,3.14672326]
[1772068422346,0.001,2064.7,2064.0,0.47443381]
[1772068422575,0.001,2064.7,2064.2,0.47443381]
[1772068423160,0.001,2064.7,2064.2,1.68551229]
[1772068424875,0.001,2064.7,2064.2,0.47443381]
[1772068426361,0.47062036,2064.7,2063.9,1.93543381]
[1772068426691,0.47062036,2064.7,2063.9,1.461]
[1772068427580,0.46962036,2064.5,2063.6,1.93543381]
[1772068428093,0.46962036,2064.5,2063.6,3.14690625]
[1772068428899,1.21100561,2064.4,2063.6,1.93543381]
[1772068429187,0.46962036,2064.3,2063.4,1.68602087]
[1772068429389,0.46962036,2064.3,2063.5,0.47443381]
[1772068429783,1.21100561,2064.4,2063.5,0.47443381]
[1772068430186,1.21100561,2064.4,2063.6,0.47443381]
[1772068430365,1.21099222,2064.5,2063.6,0.47443381]
[1772068430979,1.21299222,2064.5,2063.8,0.47443381]
[1772068432181,2.18393393,2064.4,2063.6,0.47443381]
[1772068432377,0.46962036,2064.4,2063.6,0.47443381]
[1772068433093,0.002,2064.5,2063.8,0.47443381]
[1772068435092,1.21100561,2064.4,2063.8,0.47443381]
[1772068435473,1.68062597,2064.4,2063.7,1.21141638]
[1772068435662,1.68062597,2064.4,2063.7,1.68585019]
[1772068436562,0.002,2064.5,2063.9,0.49018948]
[1772068436763,1.21295874,2064.5,2063.9,0.49018948]
[1772068438183,0.002,2064.5,2064.0,1.21124031]
[1772068440470,0.002,2064.5,2063.9,1.70144763]
[1772068443270,0.002,2064.5,2064.0,0.49018948]
[1772068445276,0.49066817,2064.5,2063.8,1.94718948]
[1772068446203,0.49066817,2064.5,2063.8,3.15854328]
[1772068446407,0.49066817,2064.5,2063.8,1.94718948]
[1772068447708,1.21100561,2064.4,2063.8,3.15854548]
[1772068447908,1.69967378,2064.4,2063.8,1.94718948]
[1772068448603,1.69967378,2064.4,2063.8,3.15854119]
[1772068449884,1.69967378,2064.4,2063.8,1.94718948]
[1772068450083,1.69967378,2064.4,2063.8,3.15854289]
[1772068452075,0.48866817,2064.3,2063.8,1.457]
[1772068452306,0.48866817,2064.3,2063.7,0.001]
[1772068452615,0.48866817,2064.2,2063.7,0.001]
[1772068453312,0.48866817,2064.1,2063.7,0.001]
[1772068453880,0.48866817,2063.9,2063.7,0.001]
[1772068454136,0.48866817,2063.9,2063.2,0.49128948]
[1772068454325,0.48866817,2063.9,2063.2,0.0011]
[1772068454619,1.69990848,2064.0,2063.3,0.49018948]
[1772068455112,0.48866817,2063.9,2063.3,0.49018948]
[1772068455316,0.48866817,2063.9,2063.7,0.001]
[1772068456081,1.21135768,2063.8,2063.7,0.001]
[1772068457912,2.74015839,2064.2,2063.7,0.49118948]
[1772068458212,1.21310972,2064.3,2063.8,0.49018948]
[1772068458513,1.70177789,2064.3,2063.7,0.001]
[1772068459607,1.70177789,2064.3,2063.7,1.70259664]
[1772068459804,1.70177789,2064.3,2063.7,0.49118948]
[1772068460902,0.48866817,2064.2,2063.7,0.001]
[1772068462324,1.21118162,2064.1,2063.7,0.001]
[1772068463334,0.48866817,2064.0,2063.7,0.001]
[1772068463485,0.48866817,2064.0,2063.5,0.001]
[1772068464330,1.21129899,2063.9,2063.5,0.001]
[1772068464701,0.002,2064.3,2063.5,0.49118948]
[1772068464898,1.21310347,2064.3,2063.6,0.49018948]
[1772068465928,0.002,2064.5,2063.8,0.46431595]
[1772068466831,0.002,2064.5,2064.0,0.46431595]
[1772068467924,5.32182905,2064.7,2064.5,0.46431595]
[1772068467925,0.001,2064.7,2064.5,0.46431595]
[1772068468230,0.001,2064.7,2064.3,0.46431595]
[1772068468231,1.21184018,2064.7,2064.3,0.46431595]
[1772068468433,1.21184018,2064.7,2064.1,1.91831595]
[1772068468814,1.21184018,2064.7,2064.1,3.12945977]
[1772068469331,1.21184018,2064.7,2064.1,2.66514382]
[1772068469538,1.21184018,2064.7,2064.2,0.46431595]
[1772068470810,0.001,2064.7,2064.2,1.67541528]
[1772068471002,0.001,2064.7,2064.3,0.46431595]
[1772068471221,0.001,2064.7,2064.1,0.46431595]
[1772068471400,0.001,2064.7,2064.3,0.46431595]
[1772068471823,0.002,2065.0,2064.5,0.46854667]
[1772068472734,1.21266107,2065.0,2064.5,0.46854667]
[1772068472907,0.002,2065.0,2064.5,0.46854667]
[1772068473437,0.002,2065.0,2064.5,1.67949011]
[1772068473807,0.002,2065.0,2064.5,0.46854667]
[1772068474218,0.002,2065.0,2064.6,0.46854667]
[1772068475060,0.002,2065.0,2064.6,1.67939061]
[1772068475239,0.002,2065.0,2064.6,0.46854667]
[1772068476861,0.002,2065.0,2064.7,0.46854667]
[1772068477016,5.30002153,2065.5,2064.8,1.67931768]
[1772068477017,1.66886162,2065.5,2064.8,1.67931768]
[1772068477338,1.66886162,2065.5,2064.9,0.46854667]
[1772068477540,1.21034306,2065.6,2064.9,0.46854667]
[1772068477906,1.21034306,2065.6,2064.8,2.92508458]
[1772068478108,0.45845654,2065.5,2064.6,3.13439496]
[1772068478311,0.45845654,2065.5,2064.7,0.46854667]
[1772068478737,1.21022778,2065.8,2065.1,0.46854667]
[1772068478948,0.002,2065.9,2065.3,0.46854667]
[1772068479253,0.002,2065.9,2065.4,1.21041928]
[1772068479750,0.002,2065.9,2065.3,1.67898125]
[1772068480453,0.002,2065.7,2065.4,0.46854667]
[1772068481050,0.002,2065.7,2065.1,8.69120454]
[1772068481051,0.46045654,2065.7,2065.1,1.454]
[1772068481262,1.66875863,2065.6,2065.0,0.46854667]
[1772068481559,0.45845654,2065.5,2064.8,0.46854667]
[1772068484259,1.21213135,2065.9,2065.4,0.46854667]
[1772068484846,1.21213135,2065.9,2065.1,0.46854667]
[1772068486769,1.67058789,2065.9,2065.1,0.46854667]
[1772068487059,0.45845654,2065.8,2065.1,0.46854667]
[1772068488458,0.45845654,2065.8,2065.1,1.67913668]
[1772068488632,0.45845654,2065.8,2065.1,0.46854667]
[1772068488828,1.2102435,2065.7,2065.1,0.46854667]
[1772068489429,1.2102435,2065.7,2065.1,1.6791399]
[1772068489630,1.2102435,2065.7,2065.1,0.46854667]
[1772068490106,0.45845654,2065.6,2064.9,0.46854667]
[1772068491769,1.66881722,2065.5,2064.9,0.46854667]
[1772068492265,0.45845654,2065.4,2064.7,1.67934707]
[1772068492776,1.21036068,2065.5,2064.8,0.46854667]
[1772068493472,0.002,2065.4,2064.8,0.46854667]
[1772068495974,0.002,2065.4,2064.9,1.21071238]
[1772068496175,0.002,2065.4,2064.9,1.67746988]
[1772068497954,0.002,2065.4,2065.0,0.4667575]
[1772068500797,0.49466995,2065.4,2064.6,0.4667575]
[1772068501079,0.002,2065.4,2065.0,0.4667575]
[1772068501947,0.002,2065.6,2065.3,0.4667575]
[1772068502379,0.002,2065.9,2065.4,0.4667575]
[1772068503389,0.002,2065.9,2065.4,1.67715813]
[1772068503602,0.002,2065.9,2065.5,0.4667575]
[1772068504161,0.002,2066.1,2065.8,0.4667575]
[1772068504451,1.2120115,2066.1,2065.5,0.4667575]
[1772068504654,0.49266995,2066.0,2065.1,0.4667575]
[1772068505102,0.49266995,2066.0,2065.2,0.4667575]
[1772068505663,1.70279628,2065.9,2065.2,0.4667575]
[1772068505863,0.49266995,2065.8,2065.0,0.4667575]
[1772068506091,0.49266995,2065.8,2064.9,2.65967161]
[1772068506092,0.49266995,2065.8,2065.2,0.001]
[1772068506304,0.002,2065.7,2065.2,0.001]
[1772068506667,0.002,2065.7,2065.2,0.4677575]
[1772068507094,0.49466995,2065.7,2065.2,0.4677575]
[1772068507257,0.49466995,2065.7,2065.2,0.001]
[1772068507595,0.49266995,2065.5,2065.0,0.001]
[1772068507802,0.49266995,2065.3,2065.0,0.001]
[1772068509400,1.21041928,2065.4,2065.0,0.001]
[1772068510481,0.49266995,2065.3,2065.0,0.001]
[1772068511601,0.49266995,2065.3,2064.7,0.001]
[1772068512010,0.49266995,2065.3,2064.7,0.4677575]
[1772068512382,1.21041928,2065.4,2064.8,0.4667575]
[1772068512635,1.21036068,2065.5,2065.0,0.4667575]
[1772068513801,1.21033053,2065.6,2065.0,0.4667575]
[1772068514204,0.49266995,2065.5,2064.8,0.4667575]
[1772068515107,0.49266995,2065.3,2064.7,0.001]
[1772068515280,0.49266995,2065.3,2064.7,0.4677575]
[1772068515603,4.84312715,2065.7,2064.8,0.4667575]
[1772068515806,1.21034377,2065.6,2064.8,0.4667575]
[1772068516416,1.21227829,2065.7,2064.8,0.4667575]
[1772068518029,1.21227829,2065.7,2064.8,1.67748548]
[1772068518030,0.49466995,2065.7,2064.8,1.67748548]
[1772068518218,0.49466995,2065.7,2064.8,0.4667575]
[1772068518627,0.49466995,2065.7,2064.7,0.001]
[1772068519605,0.49466995,2065.7,2065.0,0.001]
[1772068519807,2.39493476,2065.4,2064.8,0.001]
[1772068520002,1.2105365,2065.2,2064.8,0.001]
[1772068520506,0.49266995,2065.1,2064.8,0.001]
[1772068521802,0.002,2065.9,2065.1,0.4667575]
[1772068522012,0.002,2065.9,2065.3,0.4667575]
[1772068523014,0.49466995,2065.9,2065.0,4.07232215]
[1772068523214,0.49466995,2065.9,2065.1,0.4667575]
[1772068524024,1.21018491,2065.8,2065.1,1.67731434]
[1772068524931,0.49466995,2065.7,2064.9,1.21067403]
[1772068525246,0.49466995,2065.7,2064.8,0.4677575]
[1772068525541,0.49266995,2065.6,2064.8,0.001]
[1772068526313,0.47293542,2065.4,2064.8,0.001]
[1772068526514,1.21036068,2065.5,2064.8,0.001]
[1772068526515,1.526,2065.3,2064.8,0.001]
[1772068527532,1.99893542,2065.3,2064.8,0.001]
[1772068527933,0.47293542,2065.2,2064.8,0.001]
[1772068528137,0.47293542,2065.2,2064.7,0.001]
[1772068528310,1.21059512,2065.1,2064.7,0.001]
[1772068529942,1.21058271,2065.2,2064.7,0.001]
[1772068530442,1.68351813,2065.2,2064.7,0.001]
[1772068530651,0.47293542,2065.1,2064.7,0.001]
[1772068531235,1.21058271,2065.2,2064.7,0.001]
[1772068531407,1.21058271,2065.2,2065.0,0.001]
[1772068532233,1.21058271,2065.2,2064.8,0.001]
[1772068532735,1.21240128,2065.5,2064.8,0.46905631]
[1772068534012,1.21236292,2065.5,2064.8,0.46905631]
[1772068534447,0.002,2065.5,2065.0,0.46805631]
[1772068537660,0.002,2065.5,2064.9,1.21071238]
[1772068537661,0.002,2065.5,2064.8,1.21174854]
[1772068537862,0.002,2065.5,2064.8,0.001]
[1772068538156,0.002,2065.5,2064.8,1.21176073]
[1772068538455,0.002,2065.5,2064.9,0.46805631]
[1772068539051,0.47235642,2065.5,2064.8,0.001]
[1772068539781,1.21041928,2065.4,2064.8,0.001]
[1772068540079,1.6807757,2065.4,2064.8,0.001]
[1772068540771,0.47035642,2065.2,2064.8,0.001]
[1772068541081,1.533,2065.3,2064.8,0.001]
[1772068542740,1.2105365,2065.2,2064.8,0.001]
[1772068543363,1.2105365,2065.2,2064.8,0.46905631]
[1772068544362,1.2105365,2065.2,2065.0,0.001]
[1772068544969,1.2125365,2065.2,2065.0,0.001]
[1772068546179,0.002,2065.2,2065.0,0.46905631]
[1772068546473,0.002,2065.2,2065.0,0.001]
[1772068547790,0.47235642,2065.2,2065.0,0.001]
[1772068548087,0.47235642,2065.2,2064.8,0.001]
[1772068548380,2.01035642,2065.2,2064.8,0.001]
[1772068549272,1.54,2065.2,2064.8,0.001]
[1772068550156,2.75058257,2065.2,2064.8,0.001]
[1772068551474,0.002,2065.2,2064.8,0.46905631]
[1772068551977,2.74846468,2065.4,2064.9,0.46805631]
[1772068553747,0.47035642,2065.3,2064.8,0.001]
[1772068554876,0.47035642,2065.1,2064.5,0.001]
[1772068555066,1.54,2065.0,2064.5,0.001]
[1772068555860,0.47856188,2064.9,2064.5,0.001]
[1772068556060,1.54,2065.0,2064.5,0.001]
[1772068558100,1.21071238,2064.9,2064.8,0.001]
[1772068558307,2.75263492,2065.1,2064.8,0.001]
[1772068558666,1.21263492,2065.1,2064.8,0.001]
[1772068562014,1.6911968,2065.1,2064.8,0.001]
[1772068564870,0.47856188,2064.8,2064.0,0.49844975]
[1772068565088,0.47856188,2064.6,2064.0,0.001]
[1772068565287,0.47856188,2064.6,2064.0,0.49844975]
[1772068565495,2.03056188,2064.5,2064.0,0.001]
[1772068565878,1.552,2064.6,2064.1,0.49744975]
[1772068566200,1.552,2064.6,2064.2,0.49744975]
[1772068566499,1.552,2064.6,2064.0,0.49844975]
[1772068566701,1.552,2064.6,2064.1,0.49744975]
[1772068567069,1.21082966,2064.7,2064.1,0.49744975]
[1772068567698,1.21082966,2064.7,2064.1,1.70862619]
[1772068568006,1.21082966,2064.7,2064.1,0.49744975]
[1772068569108,1.21082966,2064.7,2064.1,1.70862118]
[1772068569311,2.76270352,2065.0,2064.3,0.49744975]
[1772068570489,2.76270352,2065.0,2064.3,0.49844975]
[1772068570806,0.002,2064.9,2064.3,0.49844975]
[1772068571179,0.48056188,2064.9,2064.3,0.49844975]
[1772068571411,1.68933289,2064.8,2064.3,0.001]
[1772068572111,1.21273752,2064.9,2064.3,1.70950841]
[1772068572292,1.21271278,2064.9,2064.4,0.49744975]
[1772068573392,1.21271278,2064.9,2064.4,1.70843735]
[1772068573713,1.21271278,2064.9,2064.4,0.49744975]
[1772068574524,1.69127466,2064.9,2064.3,0.001]
[1772068575188,1.69127466,2064.9,2064.3,1.70951196]
[1772068575383,1.69127466,2064.9,2064.3,0.49844975]
[1772068577589,0.47856188,2064.8,2064.3,0.001]
[1772068577795,0.47856188,2064.8,2064.0,0.001]
[1772068578385,2.92469535,2064.9,2064.0,0.001]
[1772068578386,0.47856188,2064.4,2064.0,0.001]
[1772068578589,0.47856188,2064.2,2064.0,0.001]
[1772068579294,0.47856188,2064.2,2063.8,0.001]
[1772068579699,1.6897435,2064.1,2063.8,0.001]
[1772068581120,0.47856188,2064.0,2063.6,0.0011]
[1772068581920,0.47856188,2063.8,2063.2,0.0011]
[1772068582237,0.47856188,2063.1,2061.8,3.18944224]
[1772068582532,0.25209552,2063.2,2061.8,4.40195674]
[1772068582533,0.47856188,2062.7,2061.8,4.40195674]
[1772068582826,1.559,2062.6,2061.9,2.20943232]
[1772068584121,1.21188617,2062.9,2062.2,0.49744975]
[1772068584420,2.14988617,2062.9,2062.2,0.49744975]
[1772068585298,2.14988617,2062.9,2061.7,6.27089572]
[1772068585299,0.47856188,2062.6,2061.7,0.49744975]
[1772068585504,0.47856188,2062.6,2061.2,0.08192]
[1772068585505,0.47856188,2062.6,2061.4,0.49744975]
[1772068585741,1.71198257,2062.8,2060.8,4.85226456]
[1772068585742,0.47856188,2062.1,2061.1,1.71038877]
[1772068586036,1.21241513,2062.0,2061.1,3.42237134]
[1772068586820,1.71188034,2062.0,2061.1,3.42237134]
[1772068587393,1.71188034,2062.0,2061.1,2.92492159]
[1772068587594,4.8491022,2062.3,2061.7,0.48011658]
[1772068587807,5.34856741,2062.3,2061.5,0.48011658]
[1772068588200,5.34856741,2062.3,2061.3,0.48011658]
[1772068588201,0.49946521,2062.2,2061.3,0.48011658]
[1772068589501,4.8491022,2062.3,2061.5,0.48011658]
[1772068590001,0.49946521,2062.5,2061.7,0.48011658]
[1772068590200,1.71198257,2063.0,2061.9,0.48011658]
[1772068590201,1.161,2062.7,2061.9,0.48011658]
[1772068591100,1.161,2062.7,2062.1,0.48011658]
[1772068591817,1.21188617,2063.0,2062.2,1.71198257]
[1772068591818,1.21182743,2063.0,2062.2,1.71198257]
[1772068592129,1.21182743,2063.0,2062.3,1.69568692]
[1772068592745,1.21174678,2063.2,2062.5,0.48348426]
[1772068592933,1.21174678,2063.2,2062.6,0.48348426]
[1772068594803,1.21174678,2063.2,2062.7,0.48348426]
[1772068596724,1.21174678,2063.2,2062.9,0.0011]
[1772068597027,0.4936007,2063.7,2062.9,0.48458426]
[1772068597204,5.3393899,2063.7,2063.0,0.48348426]
[1772068597405,0.4936007,2063.7,2063.0,0.48348426]
[1772068597611,1.558,2063.8,2063.2,0.48348426]
[1772068598125,2.76936891,2063.8,2063.2,0.48348426]
[1772068598330,1.558,2063.8,2063.2,0.48348426]
[1772068598904,1.70466498,2064.3,2063.6,0.48348426]